Cogmind - Beta 15 @@@ ROGUE MODE // 2025.09.04 @ 20:33:01 Player: beans Result: Destroyed by Y-45 Defender with Heavy Assault Rifle Performance ------------- Evolutions (2) 1000 Regions Visited (6) 1200 Robots Destroyed (19) 95 Value Destroyed (351) 351 Prototype IDs (24) 480 Alien Tech Used (0) 0 Bonus (479) 479 TOTAL SCORE: 3605 Bonus ------- Follower Combat Kills 179 Aligned with FarCom 300 Cogmind --------- Core Integrity 0/550 Matter 500/500 Energy 99/100 System Corruption 1% Temperature Cool (0) Movement Core (100) Ox1 Location -8/Storage Parts ------- > --- POWER (1) -------- (None) > --- PROPULSION (2) --- (None) > --- UTILITY (5) ------ High-capacity Matter Pod > --- WEAPON (3) ------- (None) > --- INVENTORY (5) ---- High-capacity Matter Pod (200) High-capacity Matter Pod (200) Weapon Cycler Transmission Jammer Graphene Brace Peak State ------------ > --- POWER ------------ Reinforced Deuterium Engine > --- PROPULSION ------- Armored Treads Armored Treads > --- UTILITY ---------- High-capacity Matter Pod High-capacity Matter Pod Compact Matter Pod Modified TNC Weapon Cycler > --- WEAPON ----------- Assault Rifle Assault Rifle > --- INVENTORY -------- Ion Engine High-capacity Matter Pod Transmission Jammer Graphene Brace Grenade Launcher [Rating: 28] Favorites ----------- Power Ion Engine Engine Ion Engine Propulsion Aluminum Leg Treads Armored Treads Leg Aluminum Leg Flight Unit Cooled VTOL Module Utility High-capacity Matter Pod Device Weapon Cycler Storage High-capacity Matter Pod Processor Modified TNC Weapon Assault Rifle Ballistic Gun Assault Rifle Launcher Grenade Launcher Build | -11 -10 -10 -10 -9 -8 -8 ------- Run | Yrd Mat Min Exi Min Mat Sto Slots Evolved 4 | . . . . . 4 . Power . | . . . . . . . Propulsion . | . . . . . . . Utility 3 | . . . . . 3 . Weapon 1 | . . . . . 1 . Parts Attached 18 | 5 . 4 . . 7 2 Power 2 | 1 . . . . 1 . Engine 2 | 1 . . . . 1 . Core . | . . . . . . . Reactor . | . . . . . . . Propulsion 5 | 2 . . . . 2 1 Treads 2 | . . . . . 2 . Leg 2 | 2 . . . . . . Wheel . | . . . . . . . Hover . | . . . . . . . Flight 1 | . . . . . . 1 Utility 7 | . . 4 . . 3 . Device 1 | . . . . . 1 . Storage 5 | . . 4 . . 1 . Processor 1 | . . . . . 1 . Hackware . | . . . . . . . Protection . | . . . . . . . Artifact . | . . . . . . . Weapon 4 | 2 . . . . 1 1 Energy Gun . | . . . . . . . Energy Cannon . | . . . . . . . Ballistic Gun 3 | 2 . . . . 1 . Ballistic Cannon . | . . . . . . . Launcher 1 | . . . . . . 1 Special Weapon . | . . . . . . . Impact Weapon . | . . . . . . . Slashing Weapon . | . . . . . . . Piercing Weapon . | . . . . . . . Special Melee Weapon . | . . . . . . . Unidentified Prototypes 1 | . . . . . . 1 Parts Lost 9 | . . . . . 1 8 Power . | . . . . . . . Propulsion 3 | . . . . . . 3 Utility 2 | . . . . . . 2 Weapon 4 | . . . . . 1 3 Highest Loss Streak 3 | . . . . . 1 3 To Critical Strikes . | . . . . . . . Average Backups 3 | 1 1 1 3 4 2 4 Power . | . . . . . . . Propulsion . | . . . . . . . Utility 2 | . . . 2 3 1 3 Weapon . | . 1 1 1 1 . . Tool/Special . | . . . . . . . Unused Backups 3 | . . . . . 1 2 Power . | . . . . . . . Propulsion . | . . . . . . . Utility 3 | . . . . . 1 2 Weapon . | . . . . . . . Tool/Special . | . . . . . . . Average Slot Usage (%) 89 | . 71 82 100 100 89 69 Engine 11 | . 14 14 14 14 9 7 Treads 2 | . . . . . 2 12 Leg 19 | . 28 28 28 28 15 . Storage 26 | . . 10 28 28 28 29 Processor 3 | . . . . . 8 8 Ballistic Gun 23 | . 28 28 28 28 25 9 Peak Build Rating 28 | 5 5 11 8 8 28 26 Average Rating 11 | 2 5 5 7 8 16 21 On Entrance 8 | . 5 5 7 8 8 25 Naked Turns . | . . . . . . . Heaviest Build 32 | 9 9 17 17 17 32 32 Greatest Support 40 | 20 20 20 20 20 40 40 Greatest Overweight (x) 3 | 2 . . . . 1 3 Average Overweight (x) . | . . . . . . . Largest Inventory Capacity 5 | 5 5 5 5 5 5 5 Average Capacity 5 | 5 5 5 5 5 5 5 Most Carried 5 | 4 1 5 4 4 5 5 Average Carried 3 | 1 1 1 3 4 2 4 Final Capacity 5 | 5 5 5 5 5 5 5 Final Carried 5 | 1 1 3 4 4 5 5 Class Distribution -------------------- 80% | Mutant 15% | Skirmisher 4% | Sprinter Dominant Class ---------------- Mutant | -10/Materials Mutant | -10/Mines Mutant | -10/Exiles Mutant | -9/Mines Skirmisher | -8/Materials Mutant | -8/Storage Resources | -11 -10 -10 -10 -9 -8 -8 ----------- Run | Yrd Mat Min Exi Min Mat Sto Matter Collected 583 | 242 . 48 . 30 181 82 Remotely . | . . . . . . . Salvage Created 542 | . . . . 80 43 419 Parts 38 | . . . . 9 1 28 Haulers Intercepted 1 | . . . . . . 1 Recyclers Shooed . | . . . . . . . Parts Field Recycled . | . . . . . . . Retrieved Matter . | . . . . . . . Parts Self-Destructed . | . . . . . . . Prevented . | . . . . . . . Kills | -11 -10 -10 -10 -9 -8 -8 ------- Run | Yrd Mat Min Exi Min Mat Sto Combat Hostiles Destroyed 12 | . . . . 3 1 8 Guns 8 | . . . . 3 1 4 AOE 4 | . . . . . . 4 Classes Destroyed 8 | . . . . 2 1 5 Worker 2 | . . . . . . 2 Tunneler 1 | . . . . 1 . . Hauler 1 | . . . . . . 1 Recycler 1 | . . . . . . 1 Mechanic 1 | . . . . . . 1 Swarmer 7 | . . . . 3 . 4 Grunt 4 | . . . . . 1 3 Sentry 2 | . . . . . . 2 Best Kill Streak 6 | . . . . 3 1 6 Combat Bots Only 4 | . . . . 3 1 4 Max Kills in Single Turn 3 | . . . . 1 1 3 Gunslinging . | . . . . . . . Exploded 3 | . . . . . . 3 Melee . | . . . . . . . Uniques/NPCs Destroyed . | . . . . . . . Combat | -11 -10 -10 -10 -9 -8 -8 -------- Run | Yrd Mat Min Exi Min Mat Sto Hostile Shots Fired 169 | . . . . 7 24 138 Missed 54 | . . . . 1 14 39 Hits 115 | . . . . 6 10 99 Melee 2 | . . . . . . 2 Projectile 113 | . . . . 6 10 97 Critical Strikes 6 | . . . . . . 6 Damage Taken 1726 | . . . . 53 184 1489 Core 563 | . . . . 9 34 520 Absorbed by Shields 49 | . . . . . . 49 Core Remaining (%) 98 | 100 . . . 96 . . Volleys Fired 33 | . . . . 5 11 17 Largest 3 | . . . . 2 3 3 Hottest 70 | . . . . 40 60 70 Shots Fired 79 | . . . . 10 32 37 Gun 74 | . . . . 10 32 32 Cannon . | . . . . . . . Launcher 5 | . . . . . . 5 Special . | . . . . . . . Kinetic 74 | . . . . 10 32 32 Thermal . | . . . . . . . Explosive 5 | . . . . . . 5 Electromagnetic . | . . . . . . . Robot Hit Streak 6 | . . . . 2 4 6 Robot Miss Streak 3 | . . . . 2 3 2 Penetration Max . | . . . . . . . Secondary Targets 2 | . . . . 2 . . Max Gunslinging Chain 1 | . . . . 1 . . Shots Hit Robots 47 | . . . . 5 20 22 Core Hits 41 | . . . . 4 7 30 Critical Kills . | . . . . . . . Critical Parts Destroyed . | . . . . . . . Critical Strikes . | . . . . . . . Melee Attacks . | . . . . . . . Impact . | . . . . . . . Slashing . | . . . . . . . Piercing . | . . . . . . . Sneak Attacks . | . . . . . . . Combat Hostiles . | . . . . . . . Follow-up Attacks . | . . . . . . . Damage Inflicted 1258 | . . . . 58 304 896 Guns 621 | . . . . 58 304 259 Cannons . | . . . . . . . Explosions 622 | . . . . . . 622 Melee . | . . . . . . . Ramming 15 | . . . . . . 15 Kinetic 621 | . . . . 58 304 259 Thermal . | . . . . . . . Explosive 622 | . . . . . . 622 Electromagnetic . | . . . . . . . Impact . | . . . . . . . Slashing . | . . . . . . . Piercing . | . . . . . . . Highest Corruption 1 | . . . . . . 1 Average Corruption 1 | . . . . . . 1 Corruption Purged . | . . . . . . . Corruption Blocked . | . . . . . . . Overload Shots . | . . . . . . . Overflow Damage 3 | . . . . . . 3 Projectiles . | . . . . . . . Explosions 3 | . . . . . . 3 Melee . | . . . . . . . Knockbacks . | . . . . . . . Impact . | . . . . . . . Kinetic . | . . . . . . . Secondary . | . . . . . . . Self-Inflicted Damage 181 | . . . . . . 181 Shots 6 | . . . . . . 6 Rammed 5 | . . . . . . 5 Targets Rammed 5 | . . . . . . 5 Kicked . | . . . . . . . Crushed . | . . . . . . . Highest Temperature 144 | . . . . . 12 144 Average Temperature 62 | . . . . . 7 75 Received Heat Transfer 543 | . . . . . 63 480 Siege Activations . | . . . . . . . Martial Activations . | . . . . . . . Shielding Activations . | . . . . . . . Robots Disrupted . | . . . . . . . Combat Hostiles . | . . . . . . . Robots Corrupted . | . . . . . . . Combat Hostiles . | . . . . . . . Parts Fried . | . . . . . . . Impact Corruptions . | . . . . . . . Robots Melted . | . . . . . . . Combat Hostiles . | . . . . . . . Parts Melted . | . . . . . . . Heat Transferred . | . . . . . . . Parts Sabotaged . | . . . . . . . Parts Stolen . | . . . . . . . Parts Stripped . | . . . . . . . Power Chain Reactions . | . . . . . . . Alert | -11 -10 -10 -10 -9 -8 -8 ------- Run | Yrd Mat Min Exi Min Mat Sto Maximum Alert Level 1 | . . . . . . 1 Low Security (%) 91 | 100 100 100 . 100 100 75 Level 1 8 | . . . . . . 24 Level 2 . | . . . . . . . Level 3 . | . . . . . . . Level 4 . | . . . . . . . Level 5 . | . . . . . . . High Security . | . . . . . . . Max Security . | . . . . . . . Peak Influence 283 | . . . . 70 118 283 Initial 37 | . . . . . . 37 Average 58 | . . . . 31 23 143 Influence Increases 609 | . . . . 75 158 376 Destroy 0b10 Robot/C 340 | . . . . 60 100 180 Destroy 0b10 Robot/NC 30 | . . . . 5 . 25 Destroy Leader 102 | . . . . 10 40 52 Allied During Kill 31 | . . . . . 18 13 Disable Machine 30 | . . . . . . 30 Destroy Structure 46 | . . . . . . 46 Lose Combat Pursuer 30 | . . . . . . 30 Influence Decreases 476 | . . . . 75 70 331 Entered New Map 51 | . . . . . . 51 Time Decay 295 | . . . . 75 40 180 Lost Part 90 | . . . . . 10 80 Lost Ally 40 | . . . . . 20 20 Squads Dispatched 3 | . . . . . 1 2 Investigation 1 | . . . . . . 1 Extermination . | . . . . . . . Reinforcement 2 | . . . . . 1 1 Assault . | . . . . . . . Garrison . | . . . . . . . Intercept . | . . . . . . . Searches Triggered . | . . . . . . . Construction Impeded 1 | . . . . . . 1 Haulers Reinforced . | . . . . . . . Active Scanning Responses . | . . . . . . . Cargo Convoy Interrupts . | . . . . . . . Stealth | -11 -10 -10 -10 -9 -8 -8 --------- Run | Yrd Mat Min Exi Min Mat Sto Distress Signals 2 | . 1 . . . . 1 Communications Jammed . | . . . . . . . Distress Signals . | . . . . . . . Times Spotted 32 | . . . . 2 5 25 Peak Tracking Total 11 | . . . . 2 3 11 Tactical Retreats 2 | . . . . . . 2 Traps | -11 -10 -10 -10 -9 -8 -8 ------- Run | Yrd Mat Min Exi Min Mat Sto Traps Triggered 3 | . . . . . . 3 Indirectly . | . . . . . . . Trap Hack Attempts . | . . . . . . . Triggered . | . . . . . . . Disarmed . | . . . . . . . Reprogrammed . | . . . . . . . Reused . | . . . . . . . Traps Extracted . | . . . . . . . Installed . | . . . . . . . Triggered . | . . . . . . . Machines | -11 -10 -10 -10 -9 -8 -8 ---------- Run | Yrd Mat Min Exi Min Mat Sto Machines Disabled 2 | . . . . . . 2 Max in Single Turn 2 | . . . . . . 2 Machines Repaired . | . . . . . . . Machines Dismantled . | . . . . . . . Machines Sabotaged . | . . . . . . . Overloaded Fab Kills . | . . . . . . . Hacking | -11 -10 -10 -10 -9 -8 -8 --------- Run | Yrd Mat Min Exi Min Mat Sto Machines Accessed 8 | . . . 5 . . 3 Terminals 3 | . . . . . . 3 Fabricators . | . . . . . . . Repair Stations . | . . . . . . . Recycling Units . | . . . . . . . Scanalyzers . | . . . . . . . Garrison Access . | . . . . . . . Total Hacks 54 | . . . 50 . . 4 Successful 52 | . . . 50 . . 2 Failed 2 | . . . . . . 2 Catastrophic 1 | . . . . . . 1 Database Lockouts . | . . . . . . . Manual 1 | . . . 1 . . . Terminals 4 | . . . . . . 4 Fabricators . | . . . . . . . Repair Stations . | . . . . . . . Recycling Units . | . . . . . . . Scanalyzers . | . . . . . . . Garrison Access . | . . . . . . . Terminal Hacks 52 | . . . 50 . . 2 Record 49 | . . . 49 . . . Open Door 2 | . . . . . . 2 Proto ID Catalog 1 | . . . 1 . . . Fabricator Hacks . | . . . . . . . Repair Station Hacks . | . . . . . . . Recycling Unit Hacks . | . . . . . . . Scanalyzer . | . . . . . . . Garrison Access Hacks . | . . . . . . . Unauthorized Hacks . | . . . . . . . Terminals . | . . . . . . . Fabricators . | . . . . . . . Repair Stations . | . . . . . . . Recycling Units . | . . . . . . . Scanalyzers . | . . . . . . . Garrison Access . | . . . . . . . Data Cores Recovered . | . . . . . . . Used . | . . . . . . . Hacking Detections 1 | . . . . . . 1 Full Trace Events 1 | . . . . . . 1 Feedback Events . | . . . . . . . Feedback Blocked . | . . . . . . . Robot Schematics Acquired . | . . . . . . . Robots Built . | . . . . . . . Authchips . | . . . . . . . Time . | . . . . . . . Total Robot Build Rating . | . . . . . . . Part Schematics Acquired . | . . . . . . . Parts Built . | . . . . . . . Authchips . | . . . . . . . Time . | . . . . . . . Total Part Build Rating . | . . . . . . . Parts Repaired . | . . . . . . . Time . | . . . . . . . Parts Recycled . | . . . . . . . Recycled Matter . | . . . . . . . Retrieved Matter . | . . . . . . . Retrieved Components . | . . . . . . . Parts Scanalyzed . | . . . . . . . Part Schematics Acquired . | . . . . . . . Parts Damaged . | . . . . . . . Bothacking | -11 -10 -10 -10 -9 -8 -8 ------------ Run | Yrd Mat Min Exi Min Mat Sto Used RIF Installer . | . . . . . . . Robots Hacked . | . . . . . . . Non-combat . | . . . . . . . Combat . | . . . . . . . Robot Hacks Applied . | . . . . . . . Relay Couplers Released . | . . . . . . . Fabnet Peak Effective % . | . . . . . . . Robots Rewired . | . . . . . . . Allies Hacked . | . . . . . . . Hacks Repelled . | . . . . . . . Allies | -11 -10 -10 -10 -9 -8 -8 -------- Run | Yrd Mat Min Exi Min Mat Sto Total Allies 3 | . . . . 3 . . Largest Group 3 | . . . . 3 3 2 Highest-Rated Group 40 | . . . . 40 40 24 Highest-Rated Ally 16 | . . . . 16 16 16 Total Orders . | . . . . . . . Ally Attacks 43 | . . . . . 38 5 Total Damage 489 | . . . . . 431 58 Kills 5 | . . . . . 4 1 Allies Corrupted . | . . . . . . . Allies Melted . | . . . . . . . Intel | -11 -10 -10 -10 -9 -8 -8 ------- Run | Yrd Mat Min Exi Min Mat Sto Active Infowar (turns) 713 | . . . . . 354 359 T.N.C. 713 | . . . . . 354 359 Robot Analysis Total . | . . . . . . . Derelict Logs Recovered 1 | . . . . 1 . . Drone Launches . | . . . . . . . Drone Recoveries . | . . . . . . . Exploration | -11 -10 -10 -10 -9 -8 -8 ------------- Run | Yrd Mat Min Exi Min Mat Sto Turns Passed 1873 | 46 34 164 725 176 355 373 Spaces Moved 1322 | 40 29 110 603 127 152 261 Core 39 | 25 . . . . . 14 Treads 127 | . . . . . 18 109 Legs 1018 | 15 29 110 603 127 134 . Wheels . | . . . . . . . Hover . | . . . . . . . Flight 138 | . . . . . . 138 Fastest Speed 32 | 50 120 120 120 120 170 32 Average Speed 123 | 88 120 120 120 120 187 105 Slowest Speed 250 | 150 120 120 120 120 190 250 Overloaded Moves 133 | . . . . . . 133 Propulsion Burnouts . | . . . . . . . Robots Hopped 5 | . . . . . . 5 Potential Cave-ins . | . . . . . . . Cave-ins Triggered . | . . . . . . . Exploration Rate (%) 29 | 3 13 18 72 34 11 55 Regions Visited 6 Branch Regions 4 Pre-discovered Areas 1 | . . . 1 . . . Known Exits Taken . | . . . . . . . Unknown Exits Taken 6 | 1 1 1 1 1 1 . Scrap Searched 2 | . . . . 2 . . Spaces Dug 9 | . . . . . . 9 Terrain Destroyed 46 | . . . . . . 46 Melee . | . . . . . . . Projectile . | . . . . . . . AOE 46 | . . . . . . 46 Terrain Rammed . | . . . . . . . Walls Destroyed . | . . . . . . . Machines Disabled . | . . . . . . . Actions | -11 -10 -10 -10 -9 -8 -8 --------- Run | Yrd Mat Min Exi Min Mat Sto Total 1479 | 50 28 141 605 140 197 318 Wait 48 | . . 24 . 9 15 . Move 1306 | 39 28 109 602 126 151 251 Hop 5 | . . . . . . 5 Pick Up 22 | 6 . 4 2 . 8 2 Fast Attach . | . . . . . . . Attach 15 | 5 . 2 . . 4 4 Detach 2 | . . . . . . 2 Swap 8 | . . 2 . . 5 1 Drop 7 | . . . 1 . 3 3 Fire 33 | . . . . 5 11 17 Melee . | . . . . . . . Ram 1 | . . . . . . 1 Kick . | . . . . . . . Crush 4 | . . . . . . 4 Escape Stasis 28 | . . . . . . 28 Rewire . | . . . . . . . Trap . | . . . . . . . Miscellaneous . | . . . . . . . Route ------- -11/Scrapyard -10/Materials -10/Mines -10/Exiles (discovered 2 exits: [*Min x2]) -9/Mines -8/Materials -8/Storage History --------- Turn | Location | Event 5 | -11/Scrapyard | Discovered new exit (range 15) 47 | -11/Scrapyard | Entered Materials 62 | -10/Materials | Discovered new exit (range 16) 81 | -10/Materials | Entered Mines 119 | -10/Mines | Met a Derelict bent on vengeance 240 | -10/Mines | Deemed a non-threat by the Exiles lab entrance 240 | -10/Mines | Discovered new exit (range 5) 245 | -10/Mines | Entered Exiles 275 | -10/Exiles | Met 8R-AWN 296 | -10/Exiles | Met EX-HEX 318 | -10/Exiles | Build established: Mutant 340 | -10/Exiles | Met EX-DEC 468 | -10/Exiles | Discovered new exit (range 14) 536 | -10/Exiles | Met EX-BIN 612 | -10/Exiles | Learned location of Zion (-6) 713 | -10/Exiles | Aligned with FarCom system 714 | -10/Exiles | Given EX-Vault access code 745 | -10/Exiles | Opened EX-Vault 753 | -10/Exiles | Found Modified TNC 777 | -10/Exiles | Warned to stay clear of 0b10 Research branches 955 | -10/Exiles | Discovered new exit (range 14) 970 | -10/Exiles | Left Exiles lab with Modified TNC 970 | -10/Exiles | Entered Mines 1087 | -9/Mines | Learned location of 1 exit from Proximity Caves 1089 | -9/Mines | Assisted by bots powering up and referring to "LRC-V3" 1119 | -9/Mines | Discovered new exit (range 15) 1146 | -9/Mines | Entered Materials 1146 | -8/Materials | Accompanied by 3 allies 1146 | -8/Materials | Evolved 4 slots: Utility x3, Weapon x1 1483 | -8/Materials | Discovered new exit (range 5) 1501 | -8/Materials | Entered Storage 1501 | -8/Storage | Accompanied by 2 allies 1729 | -8/Storage | Lost 3 parts (3w) 1794 | -8/Storage | Lost 3 parts (2n1u) 1795 | -8/Storage | Core integrity fell below 50% 1861 | -8/Storage | Core integrity fell below 20% 1874 | -8/Storage | Destroyed by Y-45 Defender with Heavy Assault Rifle Last Messages --------------- A bubble of rippling energy engulfs the area. Field strength at 95. Field strength at 90. Field strength at 85. Field strength at 80. Field strength at 75. Field strength at 67. Field strength at 62. Field strength at 54. Field strength at 49. Field strength at 42. Field strength at 35. Field strength at 23. Field strength at 14. Stasis field depleted. Modified TNC destroyed. System corrupted by crushing effect (+1). Cld. VTOL Module destroyed. Slammed into S-10 Pest. U-05 Engineer lays Concrete. Map ----- +----------------------------------------------------+ | ???????? T #??#+##+# | | ?????????????###### #????? ? | | ??????????????????# #?????? ? | | ???????????######?# #??????" | | ???????????#/ # #??????" | | ???????????# / # #??????" | | ???????????# + +??????" | | ???????????# """ # ####??????" | | ?????w?????# """ # #????????? ? | | ???????????# """?# #???????? ? | | ???????????######?# #???????##?? | | ??????????????????# #??????????? | | ???????? ?????????# #??????????? | | ???????? ?????????# #??????????? | | ???#???? ?????????# #??????????? | | ???# ??? ?????????# #?????##??#? | | ???# ??? ?????????# #?????# | | ???# ??? ?????????# #??????# | | ??## #??+#????????# #??????# " | | ??# ## #????????#Y#??????# T | | ??? Y k#????????#Y#??????# " | | ???? #????????# #??????# | | ????# #??????###/####???#### | | ????# #??????# g #??????# | | ????# #??????# bgY # ##### | | ????# @ ######## Y" " g = | | ????# s "R" # ##### | | ????####+########^^""" ## ### ## | | ?????? ?????# #? ## | | ?????# ! !#???##### ##??## | | ?????# !#???????###????# | | ?????# !#??????????????# " | | ?????# #??????????????# "Y | | ?????# !! #??????????????# "? | | ?????########??????????????####? | | ???????????????????????????????? | | ???????????????????????????????? | | ???????????????????????????????? | | ???????????????????????????????? | | ???????????????????????????????? | | ???????????????????????????????? | | ???????????????????????????????? | | ???????????????????????????????? | | ???????????????????????????????? | | ???????????????????????????????? | | ???????????????????????????????? | | ???????????????????????????????? | | ???????????????????????????????? | | ???????????????????????????????? | | ???????????????????????????????? | +----------------------------------------------------+ Best States ------------- Heat Dissipation 31 Energy Generation 16 Energy Capacity 290 Matter Stores 1050 Matter Capacity 1050 Sight Range 16 Terrain Scan Density 10 Evasion (%) 63 Recoil Reduction 2 Item Schematics ----------------- None Robot Schematics ------------------ None Fabricated ------------ Nothing Repaired ---------- Nothing Alien Tech Used ----------------- None Achievements -------------- None Challenges ------------ None Game ------ Seed IntegratedElectrostormCannon Manual? 0 Play Time 00:12:51 Cumulative 124.5 hours Start 2025.09.04 @ 20:19:54 End 2025.09.04 @ 20:33:01 Sessions 1 Manual Loads 0 Difficulty Rogue Special Mode None Game No. 441 Rogue 441 Adventurer 0 Explorer 0 Win Type - Total 0 Types 0/0/0/0/0/0/0/0/0/0 Lore% 48 Gallery% 46 Achievement% 34 Wizard Run 0 Options --------- Layout 2 ASCII 0 Keyboard 0 Movement Mouse Keybinds 0 Fullscreen 2 Font 24/Smallcaps Map View 50x44 Zoom Use 0% Tactical HUD 0 Map Filters NONE Filters NONE Steam 1 RUN: 9ce4e799-4b47-419e-9017-9ccf434706ff